{"text_format":"3","workbook":"xlsx","n_sheets":1,"sheets":["Sheet2"],"not_rendered":{"defined_names":1},"read":"whole","date_system":"1900"}

{"sheet":"Sheet2","index":0,"n_rows":63,"n_cols":6,"rows_kept":63,"merged":[[0,2,0,4],[1,2,1,4],[3,1,3,5],[5,1,5,3],[6,1,7,1],[6,2,7,2],[6,3,7,3],[6,4,7,4],[6,5,7,5],[20,1,22,5],[25,1,25,2],[31,1,31,2],[38,1,38,2],[46,1,46,2],[58,2,58,4],[62,1,63,5]]}
[]
[null,null,"ATTACHMENT A - PRICING SHEET"]
[]
[null,"BIDDERS MUST ENTER PRICING IN US DOLLARS FOR EACH LINE HIGHLIGHTED IN BLUE\nBELOW. ITEMS LEFT BLANK, WILL BE DEEMED AS A NO-BID FOR THAT ITEM AND BIDDERS\nMAY BE DEEMED NON-RESPONSIVE."]
[]
[null,"I. REPLACEMENT COST PER LAMP (Includes Price of Lamps)"]
[null,null,"Type (LED Light Only)","Estimated Annual QTY","Unit Price","Total"]
[]
[null,"A","1500 W Metal Halide T7",30,null,{"$f":"SUM(D9*E9)","v":0}]
[null,"B","400 W Metal Halide",5,null,{"$f":"SUM(D10*E10)","v":0}]
[null,"C","175 W Metal Halide",40,null,0]
[null,"D","HPS 250 W",10,null,0]
[null,"E","1000 W Musco Metal Halide (OFFSET) (NO SUBSTITUTE)",30,null,0]
[null,"F","1500 W Musco Metal Halide (OFFSET) (NO SUBSTITUTE)",50,null,0]
[null,"G","Halogen 1000 W",5,null,0]
[null,"H","Halogen 1500 W",20,null,0]
[null,"I","COST PER POLE FOR LIGHT RE- ALIGNMENT",10,null,0]
[null,"J","1500 W METAL HALIDE",60,null,0]
[{"$nulls":4},"TOTAL COST ",{"$f":"SUM(F9:F18)","v":{"v":0,"d":"0.00"}}]
[]
[null,"HOURLY RATES INCLUDE THE PROVISION OF ALL THINGS NECESSARY FOR PERFORMING\nREPAIRS, INSPECTION, AND MAINTENANCE (NOT COVERED UNDER THE PREVENTIVE\nMAINTENANCE SERVICES) INCLUDING BUT NOT LIMITED TO, LABOR, EQUIPMENT, TOOLS, AND\nTRANSPORTATION TO, FROM AND BETWEEN JOBS, PARKING, TOOLS-OF-THE-TRADE, AND\nMEANS FOR ACCESS, AND CONSUMABLE SUPPLIES. OVERTIME (OVER 8 HOURS OF\nCONSECUTIVE WORK) RATES SHALL BE TIME AND HALF OF REGULAR HOURLY RATES."]
[]
[]
[]
[]
[null,"II. FOR MAINTENANCE AND REPAIRS OR REPLACEMENT OF ITEMS OTHER THAN LAMPS*",null,"PRICE PER HOUR","TOTAL"]
[null,"k","ELECTRICIAN ",null,{"$f":"_xlfn.NUMBERVALUE(D27)","v":0}]
[null,"L","HELPER",null,{"$f":"_xlfn.NUMBERVALUE(D28)","v":0}]
[{"$nulls":3},"TOTAL COST ",{"$f":"SUM(E27:E28)","v":{"v":0,"d":"0.00"}}]
[null,"*The Contract Manager hours are not billable and shall be considered Contractor overhead. "]
[]
[" ","III. FOR POLE ELECTRICAL \"WORK OVER 35 FT\"",null,"PRICE PER HOUR","TOTAL"]
[null,"M","ELECTRICIAN ",null,{"$f":"_xlfn.NUMBERVALUE(D33)","v":0}]
[null,"N","HELPER",null,{"$f":"_xlfn.NUMBERVALUE(D34)","v":0}]
[{"$nulls":3},"TOTAL COST ",{"$f":"SUM(E33:E34)","v":{"v":0,"d":"0.00"}}]
[null,"*The Contract Manager hours are not billable and shall be considered Contractor overhead. "]
[]
[]
[null,"IV. EQUIPMENT COST INCLUDING PRICE FOR OPERATOR",null,"PRICE PER HOUR","TOTAL"]
[null,"O","SERVICE TRUCK ",null,{"$f":"_xlfn.NUMBERVALUE(D40)","v":0}]
[null,"P","LARGE BUCKET TRUCK (45 feet or greater)",null,{"$f":"_xlfn.NUMBERVALUE(D41)","v":0}]
[null,"Q","SMALL BUCKET TRUCK (less than 45 feet)",null,0]
[{"$nulls":3},"TOTAL COST ",{"$f":"SUM(E40:E42)","v":{"v":0,"d":"0.00"}}]
[]
[]
[]
[null,"V. ADDITIONAL EQUIPMENT INCLUDING PRICE FOR OPERATOR (ONLY WHERE AN OPERATOR IS APPLICABLE)",null,"PRICE PER HOUR","TOTAL"]
[null,"R","SERVICE TRUCK ",null,{"$f":"_xlfn.NUMBERVALUE(D48)","v":0}]
[null,"S","LARGE BUCKET TRUCK (45 feet or greater)",null,{"$f":"_xlfn.NUMBERVALUE(D49)","v":0}]
[null,"T","SMALL BUCKET TRUCK (less than 45 feet)",null,0]
[null,"U","SERVICE TRUCK ",null,0]
[null,"V","LARGE BUCKET TRUCK (45 feet or greater)",null,0]
[null,"W","SMALL BUCKET TRUCK (less than 45 feet)",null,0]
[null,"X","LARGE BUCKET TRUCK (45 feet or greater)",null,0]
[null,"Y","SMALL BUCKET TRUCK (less than 45 feet)",null,0]
[{"$nulls":3},"TOTAL COST ",{"$f":"SUM(E48:E55)","v":{"v":0,"d":"0.00"}}]
[]
[]
[null,null,"GRAND TOTAL (Sum of I. - V.) =",null,null,{"$f":"SUM(F19,E29,E35,E43,E56)","v":{"v":0,"d":"0.00"}}]
[]
[]
[]
[null,"NOTE: Overtime Work (OVER 8 HOURS OF CONSECUTIVE WORK) RATES SHALL BE TIME AND HALF OF REGULAR HOURLY RATES."]